[Event "Live Chess"]
[Site "Chess.com"]
[Date "2023.05.21"]
[Round "-"]
[White "Tilbs_12"]
[Black "MarkLim1"]
[Result "0-1"]
[WhiteElo "1572"]
[BlackElo "1729"]
[TimeControl "300"]
[EndTime "2:34:51 PDT"]
[Termination "MarkLim1 won by resignation"]

1. d4 {[%clk 0:04:56.7]} 1... Nf6 {[%clk 0:04:59.2]} 2. c4 {[%clk 0:04:54.8]}
2... e6 {[%clk 0:04:58.7]} 3. Nc3 {[%clk 0:04:53.5]} 3... d5 {[%clk 0:04:57.5]}
4. Bg5 {[%clk 0:04:49.5]} 4... Be7 {[%clk 0:04:56.6]} 5. Nf3 {[%clk 0:04:48]}
5... h6 {[%clk 0:04:55.7]} 6. Bxf6 {[%clk 0:04:45.6]} 6... Bxf6 {[%clk
0:04:54.9]} 7. e3 {[%clk 0:04:45]} 7... O-O {[%clk 0:04:54.1]} 8. Bd3 {[%clk
0:04:43.5]} 8... dxc4 {[%clk 0:04:53]} 9. Bxc4 {[%clk 0:04:42.6]} 9... Nd7
{[%clk 0:04:52.9]} 10. O-O {[%clk 0:04:41.4]} 10... c5 {[%clk 0:04:52.5]} 11.
Ne4 {[%clk 0:04:28.7]} 11... Be7 {[%clk 0:04:48.5]} 12. a4 {[%clk 0:04:15.9]}
12... cxd4 {[%clk 0:04:37.5]} 13. Nxd4 {[%clk 0:04:13]} 13... Nf6 {[%clk
0:04:36.5]} 14. Nc3 {[%clk 0:04:02.4]} 14... Qc7 {[%clk 0:04:34.4]} 15. Bd3
{[%clk 0:03:56.9]} 15... a6 {[%clk 0:04:32]} 16. Rc1 {[%clk 0:03:54.7]} 16...
Qb6 {[%clk 0:04:28.4]} 17. b3 {[%clk 0:03:49.8]} 17... Bd7 {[%clk 0:04:26.5]}
18. Ne4 {[%clk 0:03:46.4]} 18... Rfd8 {[%clk 0:04:21.6]} 19. Nxf6+ {[%clk
0:03:24.3]} 19... Bxf6 {[%clk 0:04:20.5]} 20. Qc2 {[%clk 0:03:13.3]} 20... Rac8
{[%clk 0:04:17.6]} 21. Qb2 {[%clk 0:03:11]} 21... Bxa4 {[%clk 0:04:09.6]} 22.
Rxc8 {[%clk 0:03:02.4]} 22... Rxc8 {[%clk 0:04:07.4]} 23. b4 {[%clk 0:03:00.9]}
23... Rd8 {[%clk 0:03:53.6]} 24. Ra1 {[%clk 0:02:34.1]} 24... Bxd4 {[%clk
0:03:50.1]} 25. exd4 {[%clk 0:02:33]} 25... Bb5 {[%clk 0:03:47]} 26. Rd1 {[%clk
0:02:27.7]} 26... Bxd3 {[%clk 0:03:44.9]} 27. Rxd3 {[%clk 0:02:26.2]} 27... Rd5
{[%clk 0:03:43.8]} 28. Kf1 {[%clk 0:02:10.3]} 28... a5 {[%clk 0:03:40.4]} 29.
Rb3 {[%clk 0:02:03.7]} 29... Qa6+ {[%clk 0:03:18.9]} 30. b5 {[%clk 0:01:52.6]}
30... Qd6 {[%clk 0:03:13.9]} 31. Rd3 {[%clk 0:01:47.9]} 31... b6 {[%clk
0:03:12.9]} 32. g3 {[%clk 0:01:45.4]} 32... Qd7 {[%clk 0:03:08.1]} 33. Ke2
{[%clk 0:01:37.7]} 33... Rxb5 {[%clk 0:03:06.1]} 34. Qa3 {[%clk 0:01:29.8]}
34... Rd5 {[%clk 0:03:00.4]} 35. Ke3 {[%clk 0:01:24.2]} 35... e5 {[%clk
0:02:56.7]} 36. dxe5 {[%clk 0:01:19.2]} 36... Rxe5+ {[%clk 0:02:55.8]} 37. Kd2
{[%clk 0:01:16.3]} 37... Qe6 {[%clk 0:02:44.3]} 38. Rd8+ {[%clk 0:01:06]} 38...
Kh7 {[%clk 0:02:42.3]} 39. Qd3+ {[%clk 0:01:05.5]} 39... g6 {[%clk 0:02:40.9]}
40. Rd6 {[%clk 0:01:01.9]} 40... Qa2+ {[%clk 0:02:35.5]} 41. Kd1 {[%clk
0:00:51.9]} 41... Qa1+ {[%clk 0:02:27]} 42. Kd2 {[%clk 0:00:50.7]} 42... Qe1+
{[%clk 0:02:23.1]} 43. Kc2 {[%clk 0:00:48.5]} 43... Qxf2+ {[%clk 0:02:21.7]} 44.
Kb1 {[%clk 0:00:45]} 44... Qg1+ {[%clk 0:02:13.7]} 45. Ka2 {[%clk 0:00:43.7]}
45... Qxh2+ {[%clk 0:02:12.6]} 46. Kb3 {[%clk 0:00:42.6]} 46... a4+ {[%clk
0:01:55.3]} 47. Kxa4 {[%clk 0:00:40.8]} 47... Qa2+ {[%clk 0:01:53.6]} 48. Kb4
{[%clk 0:00:38.8]} 48... Qa5+ {[%clk 0:01:48.4]} 49. Kb3 {[%clk 0:00:37.4]}
49... Rb5+ {[%clk 0:01:43.9]} 50. Kc2 {[%clk 0:00:36.1]} 50... Qa2+ {[%clk
0:01:39.8]} 51. Kc3 {[%clk 0:00:31.5]} 51... Rb3+ {[%clk 0:01:38.6]} 52. Kd4
{[%clk 0:00:30.1]} 52... Rxd3+ {[%clk 0:01:37.6]} 53. Kxd3 {[%clk 0:00:29.6]}
53... Qa3+ {[%clk 0:01:35.9]} 54. Ke4 {[%clk 0:00:28.1]} 54... Qxd6 {[%clk
0:01:35.8]} 0-1

[Event "Live Chess"]
[Site "Chess.com"]
[Date "2023.05.21"]
[Round "-"]
[White "Long1968"]
[Black "TheSmoulderingMaster"]
[Result "0-1"]
[WhiteElo "970"]
[BlackElo "1710"]
[TimeControl "300"]
[EndTime "2:34:57 PDT"]
[Termination "TheSmoulderingMaster won on time"]

1. e4 {[%clk 0:04:55.8]} 1... c5 {[%clk 0:04:58.8]} 2. c3 {[%clk 0:04:53.5]}
2... d5 {[%clk 0:04:57.6]} 3. exd5 {[%clk 0:04:50.8]} 3... Qxd5 {[%clk
0:04:56.9]} 4. d4 {[%clk 0:04:48.6]} 4... Nc6 {[%clk 0:04:53.5]} 5. Nf3 {[%clk
0:04:45]} 5... Bg4 {[%clk 0:04:52]} 6. Be2 {[%clk 0:04:42.4]} 6... e6 {[%clk
0:04:49.1]} 7. O-O {[%clk 0:04:39.1]} 7... cxd4 {[%clk 0:04:47.7]} 8. cxd4
{[%clk 0:04:36.2]} 8... Nf6 {[%clk 0:04:45.6]} 9. Nc3 {[%clk 0:04:32.3]} 9...
Qd8 {[%clk 0:04:43.7]} 10. Bf4 {[%clk 0:04:22.3]} 10... a6 {[%clk 0:04:40.8]}
11. Ne5 {[%clk 0:03:51.5]} 11... Bxe2 {[%clk 0:04:37.2]} 12. Nxe2 {[%clk
0:03:37.8]} 12... Nd5 {[%clk 0:04:33.5]} 13. Nxc6 {[%clk 0:03:21.7]} 13... bxc6
{[%clk 0:04:31.1]} 14. Qa4 {[%clk 0:03:15.2]} 14... Qd7 {[%clk 0:04:26.5]} 15.
Rfc1 {[%clk 0:03:04.7]} 15... Nb4 {[%clk 0:04:13.3]} 16. Rc3 {[%clk 0:02:35.2]}
16... Be7 {[%clk 0:04:06.4]} 17. a3 {[%clk 0:02:16.9]} 17... Nd5 {[%clk
0:04:03.9]} 18. Rxc6 {[%clk 0:02:04]} 18... O-O {[%clk 0:04:01.3]} 19. Qc4
{[%clk 0:01:11.9]} 19... Nxf4 {[%clk 0:03:56.4]} 20. Nxf4 {[%clk 0:01:06.8]}
20... h6 {[%clk 0:03:55.8]} 21. Rc7 {[%clk 0:00:52.9]} 21... Qd6 {[%clk
0:03:53.1]} 22. g3 {[%clk 0:00:25.6]} 22... Rfd8 {[%clk 0:03:49.7]} 23. Rd1
{[%clk 0:00:13.8]} 23... Bf6 {[%clk 0:03:47]} 24. Rc6 {[%clk 0:00:01]} 24... Qd7
{[%clk 0:03:44.1]} 0-1

[Event "Live Chess"]
[Site "Chess.com"]
[Date "2023.05.21"]
[Round "-"]
[White "Denz14"]
[Black "Doge_Dandolo"]
[Result "0-1"]
[WhiteElo "1041"]
[BlackElo "1868"]
[TimeControl "300"]
[EndTime "2:35:01 PDT"]
[Termination "Doge_Dandolo won by resignation"]

1. d4 {[%clk 0:04:57.5]} 1... d5 {[%clk 0:04:58.6]} 2. Bf4 {[%clk 0:04:55.8]}
2... Bf5 {[%clk 0:04:56.6]} 3. e3 {[%clk 0:04:54.6]} 3... c5 {[%clk 0:04:54.9]}
4. c3 {[%clk 0:04:52]} 4... Qb6 {[%clk 0:04:53.8]} 5. Kd2 {[%clk 0:04:42.5]}
5... Qxb2+ {[%clk 0:04:50]} 6. Qc2 {[%clk 0:04:40.6]} 6... Qxc2+ {[%clk
0:04:48.1]} 7. Ke1 {[%clk 0:04:36.7]} 7... Qb2 {[%clk 0:04:45.2]} 8. Nd2 {[%clk
0:04:30.6]} 8... Qxa1+ {[%clk 0:04:43.7]} 9. Nb1 {[%clk 0:04:29.1]} 9... Qxb1+
{[%clk 0:04:40.2]} 10. Ke2 {[%clk 0:04:26.3]} 10... Qd3+ {[%clk 0:04:34.7]} 11.
Ke1 {[%clk 0:04:22.9]} 0-1

[Event "Live Chess"]
[Site "Chess.com"]
[Date "2023.05.21"]
[Round "-"]
[White "lHolyDiverl"]
[Black "Biranidun"]
[Result "0-1"]
[WhiteElo "555"]
[BlackElo "2552"]
[TimeControl "300"]
[EndTime "2:35:28 PDT"]
[Termination "Biranidun won by resignation"]

1. d4 {[%clk 0:04:57.4]} 1... Nf6 {[%clk 0:04:59]} 2. Nc3 {[%clk 0:04:55]} 2...
d5 {[%clk 0:04:57.5]} 3. Bf4 {[%clk 0:04:53.7]} 3... g6 {[%clk 0:04:56.6]} 4. e3
{[%clk 0:04:49.5]} 4... Bg7 {[%clk 0:04:56.2]} 5. Nf3 {[%clk 0:04:32.3]} 5... c5
{[%clk 0:04:52.1]} 6. dxc5 {[%clk 0:04:22.4]} 6... O-O {[%clk 0:04:49]} 7. Bd3
{[%clk 0:03:56.3]} 7... Qa5 {[%clk 0:04:46.8]} 8. O-O {[%clk 0:03:39.5]} 8...
Nc6 {[%clk 0:04:45.5]} 9. a3 {[%clk 0:03:32.4]} 9... Qxc5 {[%clk 0:04:43]} 10.
Nb5 {[%clk 0:03:13.3]} 10... Ne8 {[%clk 0:04:21.5]} 11. Rb1 {[%clk 0:03:04.9]}
11... a6 {[%clk 0:04:19.6]} 12. Nc7 {[%clk 0:02:54.9]} 12... Nxc7 {[%clk
0:04:17.6]} 13. Bxc7 {[%clk 0:02:53.5]} 13... e5 {[%clk 0:04:16.7]} 14. e4
{[%clk 0:02:40.9]} 14... Bg4 {[%clk 0:04:10.6]} 15. h3 {[%clk 0:02:24.9]} 15...
Bxf3 {[%clk 0:04:09.2]} 16. gxf3 {[%clk 0:01:55.3]} 16... Nd4 {[%clk 0:04:06.7]}
17. c3 {[%clk 0:01:25.7]} 17... Ne6 {[%clk 0:04:05.1]} 18. Qb3 {[%clk
0:00:56.2]} 18... Qxc7 {[%clk 0:04:02.1]} 19. Qxd5 {[%clk 0:00:52.7]} 19... Nf4
{[%clk 0:03:59.4]} 20. Qc4 {[%clk 0:00:38.3]} 20... Qd7 {[%clk 0:03:58.3]} 21.
Rbd1 {[%clk 0:00:33.2]} 21... Qxh3 {[%clk 0:03:56.7]} 0-1

[Event "Live Chess"]
[Site "Chess.com"]
[Date "2023.05.21"]
[Round "-"]
[White "LiamClery2020"]
[Black "WilliamofOrange16th"]
[Result "0-1"]
[WhiteElo "1984"]
[BlackElo "1854"]
[TimeControl "300"]
[EndTime "2:35:35 PDT"]
[Termination "WilliamofOrange16th won by resignation"]

1. e4 {[%clk 0:04:59.3]} 1... d6 {[%clk 0:04:59.1]} 2. d4 {[%clk 0:04:56.7]}
2... Nf6 {[%clk 0:04:58.5]} 3. Nc3 {[%clk 0:04:55.7]} 3... Nbd7 {[%clk
0:04:57.4]} 4. Be3 {[%clk 0:04:55.2]} 4... e5 {[%clk 0:04:57.2]} 5. dxe5 {[%clk
0:04:54.4]} 5... dxe5 {[%clk 0:04:56.3]} 6. f3 {[%clk 0:04:53.8]} 6... c6 {[%clk
0:04:51.4]} 7. Qd2 {[%clk 0:04:53]} 7... Be7 {[%clk 0:04:50.1]} 8. Nge2 {[%clk
0:04:52.2]} 8... O-O {[%clk 0:04:48.7]} 9. Ng3 {[%clk 0:04:51.8]} 9... Nc5
{[%clk 0:04:45.3]} 10. Qxd8 {[%clk 0:04:49.6]} 10... Rxd8 {[%clk 0:04:45.2]} 11.
Bc4 {[%clk 0:04:48.4]} 11... b5 {[%clk 0:04:42]} 12. Bb3 {[%clk 0:04:46.7]}
12... a5 {[%clk 0:04:40.7]} 13. a4 {[%clk 0:04:23.8]} 13... b4 {[%clk
0:04:32.5]} 14. Nce2 {[%clk 0:04:23.1]} 14... Nxb3 {[%clk 0:04:31.8]} 15. cxb3
{[%clk 0:04:22.2]} 15... Be6 {[%clk 0:04:31.6]} 16. O-O {[%clk 0:04:18.9]} 16...
Bxb3 {[%clk 0:04:30]} 17. Nf5 {[%clk 0:04:18.3]} 17... Bf8 {[%clk 0:04:29.3]}
18. Rac1 {[%clk 0:04:14.6]} 18... Bxa4 {[%clk 0:04:09.9]} 19. Bg5 {[%clk
0:04:12.6]} 19... Bb5 {[%clk 0:04:01.8]} 20. Rfe1 {[%clk 0:04:11.4]} 20... a4
{[%clk 0:03:55.2]} 21. Bxf6 {[%clk 0:03:59.3]} 21... gxf6 {[%clk 0:03:55.1]} 22.
Neg3 {[%clk 0:03:58.3]} 22... Rd7 {[%clk 0:03:22.5]} 23. Nh5 {[%clk 0:03:54.3]}
23... Be7 {[%clk 0:03:21]} 24. Red1 {[%clk 0:03:39]} 24... Rxd1+ {[%clk
0:03:15.8]} 25. Rxd1 {[%clk 0:03:37.9]} 25... Bc5+ {[%clk 0:03:13.6]} 26. Kh1
{[%clk 0:03:36.6]} 26... Bd4 {[%clk 0:02:57.7]} 27. Nxf6+ {[%clk 0:03:34.5]}
27... Kf8 {[%clk 0:02:55.7]} 28. Nxh7+ {[%clk 0:03:29.6]} 28... Ke8 {[%clk
0:02:54.3]} 29. Nf6+ {[%clk 0:03:28.7]} 29... Kd8 {[%clk 0:02:50.8]} 30. Nxd4
{[%clk 0:03:26.3]} 30... exd4 {[%clk 0:02:49.9]} 31. Rxd4+ {[%clk 0:03:26.2]}
31... Ke7 {[%clk 0:02:47.5]} 32. Ng4 {[%clk 0:03:21.2]} 32... a3 {[%clk
0:02:46.2]} 33. bxa3 {[%clk 0:03:20.3]} 33... bxa3 {[%clk 0:02:45.4]} 34. Rd1
{[%clk 0:03:20.2]} 34... a2 {[%clk 0:02:38.5]} 35. Ra1 {[%clk 0:03:19.4]} 35...
Ke6 {[%clk 0:02:26.8]} 36. Ne3 {[%clk 0:03:12.8]} 36... Bd3 {[%clk 0:02:24.6]}
37. Nd1 {[%clk 0:02:59.1]} 37... Ra3 {[%clk 0:02:20.5]} 38. Nb2 {[%clk
0:02:56.3]} 38... Bb1 {[%clk 0:02:17.4]} 39. Nc4 {[%clk 0:02:53.8]} 39... Rc3
{[%clk 0:02:14.8]} 0-1

[Event "Live Chess"]
[Site "Chess.com"]
[Date "2023.05.21"]
[Round "-"]
[White "worldchessleaguelive"]
[Black "apl_trainer"]
[Result "0-1"]
[WhiteElo "1338"]
[BlackElo "1760"]
[TimeControl "300"]
[EndTime "2:35:51 PDT"]
[Termination "apl_trainer won by checkmate"]

1. d4 {[%clk 0:04:55.5]} 1... Nf6 {[%clk 0:04:58.9]} 2. Bf4 {[%clk 0:04:50.8]}
2... c5 {[%clk 0:04:57.1]} 3. dxc5 {[%clk 0:04:48.9]} 3... Qa5+ {[%clk
0:04:45.6]} 4. Nc3 {[%clk 0:04:45.5]} 4... Ne4 {[%clk 0:04:38.6]} 5. Bd2 {[%clk
0:04:41.7]} 5... Nxd2 {[%clk 0:04:36.5]} 6. Qxd2 {[%clk 0:04:40.1]} 6... g6
{[%clk 0:04:31.4]} 7. Nf3 {[%clk 0:04:37.9]} 7... Bg7 {[%clk 0:04:29.7]} 8. e4
{[%clk 0:04:26]} 8... Qxc5 {[%clk 0:04:25.9]} 9. Bd3 {[%clk 0:04:18.3]} 9... d6
{[%clk 0:04:22.2]} 10. O-O {[%clk 0:04:13.4]} 10... Nc6 {[%clk 0:04:20.5]} 11.
a3 {[%clk 0:04:07.5]} 11... O-O {[%clk 0:04:18.1]} 12. Rad1 {[%clk 0:04:02.5]}
12... Bg4 {[%clk 0:04:15.8]} 13. Be2 {[%clk 0:03:57.2]} 13... Bxf3 {[%clk
0:04:08.1]} 14. Bxf3 {[%clk 0:03:52]} 14... Bxc3 {[%clk 0:04:06.3]} 15. bxc3
{[%clk 0:03:49.8]} 15... Qxa3 {[%clk 0:03:59.4]} 16. Ra1 {[%clk 0:03:47]} 16...
Qc5 {[%clk 0:03:57.1]} 17. Rfb1 {[%clk 0:03:44.7]} 17... Rab8 {[%clk 0:03:44]}
18. e5 {[%clk 0:03:40.4]} 18... Qxe5 {[%clk 0:03:30.3]} 19. Bxc6 {[%clk
0:03:35.5]} 19... bxc6 {[%clk 0:03:28.8]} 20. Rxb8 {[%clk 0:03:34.3]} 20... Rxb8
{[%clk 0:03:27.2]} 21. Rxa7 {[%clk 0:03:33.2]} 21... Rb1+ {[%clk 0:03:24.5]} 22.
Qe1 {[%clk 0:03:28.4]} 22... Rxe1# {[%clk 0:03:22.3]} 0-1

[Event "Live Chess"]
[Site "Chess.com"]
[Date "2023.05.21"]
[Round "-"]
[White "Tushinskiy"]
[Black "Purple1szed"]
[Result "0-1"]
[WhiteElo "2141"]
[BlackElo "1823"]
[TimeControl "300"]
[EndTime "2:35:56 PDT"]
[Termination "Purple1szed won by resignation"]

1. d4 {[%clk 0:04:55.6]} 1... Nf6 {[%clk 0:04:58.7]} 2. c3 {[%clk 0:04:55.5]}
2... c5 {[%clk 0:04:56.4]} 3. Nf3 {[%clk 0:04:55.4]} 3... cxd4 {[%clk
0:04:55.7]} 4. cxd4 {[%clk 0:04:54.5]} 4... d5 {[%clk 0:04:55.6]} 5. Nc3 {[%clk
0:04:53.8]} 5... Nc6 {[%clk 0:04:55.3]} 6. Bf4 {[%clk 0:04:51.8]} 6... Bf5
{[%clk 0:04:54.5]} 7. e3 {[%clk 0:04:50.7]} 7... e6 {[%clk 0:04:53.2]} 8. Bd3
{[%clk 0:04:48.4]} 8... Bg6 {[%clk 0:04:51.6]} 9. O-O {[%clk 0:04:46.3]} 9...
Bd6 {[%clk 0:04:49.2]} 10. Bg3 {[%clk 0:04:44.3]} 10... O-O {[%clk 0:04:43.9]}
11. Rc1 {[%clk 0:04:42.4]} 11... Rc8 {[%clk 0:04:42]} 12. Qb3 {[%clk 0:04:39]}
12... Bxd3 {[%clk 0:04:27.6]} 13. Rfd1 {[%clk 0:04:37.8]} 13... Bc4 {[%clk
0:04:26.1]} 14. Qxb7 {[%clk 0:04:36.8]} 14... Bxg3 {[%clk 0:04:16.7]} 15. hxg3
{[%clk 0:04:34.5]} 15... Qc7 {[%clk 0:04:16]} 16. Qxc7 {[%clk 0:04:33.2]} 16...
Rxc7 {[%clk 0:04:15.9]} 17. b3 {[%clk 0:04:32.6]} 17... Ba6 {[%clk 0:04:08.9]}
18. Na4 {[%clk 0:04:27.2]} 18... Rfc8 {[%clk 0:03:59]} 19. Nc5 {[%clk
0:04:24.3]} 19... Be2 {[%clk 0:03:51.4]} 20. Rf1 {[%clk 0:04:18.8]} 20... Bxf1
{[%clk 0:03:50.1]} 0-1

[Event "Live Chess"]
[Site "Chess.com"]
[Date "2023.05.21"]
[Round "-"]
[White "MarkLim1"]
[Black "elephantgerrald"]
[Result "1-0"]
[WhiteElo "1729"]
[BlackElo "688"]
[TimeControl "300"]
[EndTime "2:35:59 PDT"]
[Termination "MarkLim1 won by checkmate"]

1. d4 {[%clk 0:04:58.2]} 1... d5 {[%clk 0:04:58.8]} 2. Nf3 {[%clk 0:04:57.6]}
2... Nc6 {[%clk 0:04:57.8]} 3. e3 {[%clk 0:04:56.5]} 3... Bg4 {[%clk 0:04:56.8]}
4. Be2 {[%clk 0:04:55.4]} 4... e6 {[%clk 0:04:55.3]} 5. O-O {[%clk 0:04:54.8]}
5... Bxf3 {[%clk 0:04:54.1]} 6. Bxf3 {[%clk 0:04:53.9]} 6... Qd6 {[%clk
0:04:53.3]} 7. c4 {[%clk 0:04:52.8]} 7... dxc4 {[%clk 0:04:52.1]} 8. Na3 {[%clk
0:04:51.8]} 8... O-O-O {[%clk 0:04:44.7]} 9. Nxc4 {[%clk 0:04:51.4]} 9... Qe7
{[%clk 0:04:38.2]} 10. b3 {[%clk 0:04:50.9]} 10... Qg5 {[%clk 0:04:35.1]} 11.
Bxc6 {[%clk 0:04:43.4]} 11... bxc6 {[%clk 0:04:33.4]} 12. Qf3 {[%clk 0:04:43]}
12... Nf6 {[%clk 0:04:30.5]} 13. Qxc6 {[%clk 0:04:41.8]} 13... Rd7 {[%clk
0:04:26.3]} 14. Qa8# {[%clk 0:04:39.9]} 1-0

[Event "Live Chess"]
[Site "Chess.com"]
[Date "2023.05.21"]
[Round "-"]
[White "Ferrarifan27"]
[Black "AttackingSnowLeopard"]
[Result "0-1"]
[WhiteElo "2093"]
[BlackElo "2207"]
[TimeControl "300"]
[EndTime "2:36:17 PDT"]
[Termination "AttackingSnowLeopard won by resignation"]

1. e4 {[%clk 0:04:59]} 1... e5 {[%clk 0:04:58.4]} 2. Nf3 {[%clk 0:04:57.6]} 2...
Nc6 {[%clk 0:04:58]} 3. Bb5 {[%clk 0:04:56.5]} 3... a6 {[%clk 0:04:56.2]} 4. Ba4
{[%clk 0:04:55.2]} 4... Nf6 {[%clk 0:04:55]} 5. O-O {[%clk 0:04:53.9]} 5... Be7
{[%clk 0:04:53.9]} 6. Re1 {[%clk 0:04:53.1]} 6... b5 {[%clk 0:04:52.9]} 7. Bb3
{[%clk 0:04:51.9]} 7... d6 {[%clk 0:04:52.4]} 8. c3 {[%clk 0:04:49.9]} 8... O-O
{[%clk 0:04:52]} 9. h3 {[%clk 0:04:48.8]} 9... Nb8 {[%clk 0:04:51.6]} 10. d4
{[%clk 0:04:47]} 10... Nbd7 {[%clk 0:04:51.2]} 11. Be3 {[%clk 0:04:42.8]} 11...
Bb7 {[%clk 0:04:47.8]} 12. dxe5 {[%clk 0:04:37.1]} 12... Nxe5 {[%clk 0:04:40.8]}
13. Nxe5 {[%clk 0:04:31.1]} 13... dxe5 {[%clk 0:04:40.7]} 14. f3 {[%clk
0:04:29.5]} 14... Qxd1 {[%clk 0:04:30.8]} 15. Rxd1 {[%clk 0:04:28.1]} 15... c5
{[%clk 0:04:30.4]} 16. Nd2 {[%clk 0:04:23.3]} 16... c4 {[%clk 0:04:29.5]} 17.
Bc2 {[%clk 0:04:22.3]} 17... Rfd8 {[%clk 0:04:26.4]} 18. a4 {[%clk 0:04:19.4]}
18... Kf8 {[%clk 0:04:15.1]} 19. axb5 {[%clk 0:04:17.8]} 19... axb5 {[%clk
0:04:13.6]} 20. Kf2 {[%clk 0:04:15.8]} 20... Ke8 {[%clk 0:04:10.2]} 21. Ke2
{[%clk 0:04:14.6]} 21... Nd7 {[%clk 0:04:09.3]} 22. Nf1 {[%clk 0:04:08.8]} 22...
Nc5 {[%clk 0:04:06.5]} 23. Bxc5 {[%clk 0:04:06.1]} 23... Bxc5 {[%clk 0:04:04.8]}
24. Rxd8+ {[%clk 0:04:03.3]} 24... Kxd8 {[%clk 0:04:01.4]} 25. Rxa8+ {[%clk
0:04:02.4]} 25... Bxa8 {[%clk 0:04:00.1]} 26. Ne3 {[%clk 0:04:01.6]} 26... Ke7
{[%clk 0:03:54.6]} 27. Nf5+ {[%clk 0:03:54.4]} 27... Kf6 {[%clk 0:03:53]} 28. h4
{[%clk 0:03:49.1]} 28... g6 {[%clk 0:03:51.3]} 29. Ne3 {[%clk 0:03:47.9]} 29...
Ke6 {[%clk 0:03:48.4]} 30. g4 {[%clk 0:03:43.9]} 30... Be7 {[%clk 0:03:41.5]}
31. g5 {[%clk 0:03:43.1]} 31... f6 {[%clk 0:03:39.3]} 32. b3 {[%clk 0:03:26.9]}
32... fxg5 {[%clk 0:03:34.4]} 33. bxc4 {[%clk 0:03:22.2]} 33... bxc4 {[%clk
0:03:31.4]} 34. hxg5 {[%clk 0:03:19]} 34... Bxg5 {[%clk 0:03:26.6]} 35. Nxc4
{[%clk 0:03:17.9]} 35... Bc6 {[%clk 0:03:23.5]} 36. Bb3 {[%clk 0:03:14.4]} 36...
Kf6 {[%clk 0:03:16.2]} 37. Ne3 {[%clk 0:03:11.3]} 37... h5 {[%clk 0:03:09.1]}
38. Bd5 {[%clk 0:02:59.9]} 38... Bd7 {[%clk 0:03:01.1]} 39. c4 {[%clk 0:02:55]}
39... Bxe3 {[%clk 0:02:49.1]} 40. Kxe3 {[%clk 0:02:53.6]} 40... h4 {[%clk
0:02:47.7]} 41. Kf2 {[%clk 0:02:52.7]} 41... g5 {[%clk 0:02:44.6]} 42. c5 {[%clk
0:02:50.6]} 42... Bc8 {[%clk 0:02:41.7]} 43. Kg2 {[%clk 0:02:40.8]} 43... Ke7
{[%clk 0:02:41]} 44. Kh2 {[%clk 0:02:34.3]} 44... Kd8 {[%clk 0:02:40.4]} 45. Kg2
{[%clk 0:02:28.4]} 45... Kc7 {[%clk 0:02:39.4]} 46. Kh2 {[%clk 0:02:24.9]} 46...
Kb8 {[%clk 0:02:37.4]} 47. Kg2 {[%clk 0:02:21.1]} 47... Ka7 {[%clk 0:02:36.8]}
48. Bc4 {[%clk 0:02:19.9]} 48... Kb7 {[%clk 0:02:32.9]} 49. Bb5 {[%clk
0:02:16.3]} 49... Kc7 {[%clk 0:02:26.7]} 50. c6 {[%clk 0:02:02.1]} 50... Be6
{[%clk 0:02:23.3]} 51. Kh2 {[%clk 0:01:58.7]} 51... Kb6 {[%clk 0:02:21]} 52. Ba4
{[%clk 0:01:56.6]} 52... Ka5 {[%clk 0:02:17.2]} 53. Bd1 {[%clk 0:01:53.1]} 53...
Kb5 {[%clk 0:02:11.9]} 54. c7 {[%clk 0:01:47.2]} 54... Kb6 {[%clk 0:02:09.2]}
55. Bb3 {[%clk 0:01:45.5]} 55... Bc8 {[%clk 0:02:08.6]} 56. Bf7 {[%clk
0:01:28.5]} 56... Kxc7 {[%clk 0:02:06.6]} 57. Kg2 {[%clk 0:01:28]} 57... Kd6
{[%clk 0:02:05.2]} 58. Kf2 {[%clk 0:01:26.9]} 58... Kc5 {[%clk 0:02:04.1]} 59.
Bb3 {[%clk 0:01:19.3]} 59... Kd4 {[%clk 0:02:02.8]} 60. Bd1 {[%clk 0:01:18]}
60... Kd3 {[%clk 0:01:56.2]} 61. Be2+ {[%clk 0:01:16.5]} 61... Kd2 {[%clk
0:01:55.2]} 62. Bf1 {[%clk 0:01:15.5]} 62... Be6 {[%clk 0:01:51.2]} 63. Bb5
{[%clk 0:01:06.1]} 63... h3 {[%clk 0:01:45.8]} 64. Kg3 {[%clk 0:01:04.2]} 64...
Ke3 {[%clk 0:01:43.2]} 65. Ba4 {[%clk 0:01:02.3]} 65... h2 {[%clk 0:01:35.5]}
66. Kxh2 {[%clk 0:01:01.2]} 66... Kxf3 {[%clk 0:01:35]} 67. Bc2 {[%clk 0:00:57]}
67... Bf7 {[%clk 0:01:33.6]} 68. Kg1 {[%clk 0:00:55.5]} 68... Bg6 {[%clk
0:01:33]} 69. Kf1 {[%clk 0:00:53.2]} 69... Bxe4 {[%clk 0:01:32.5]} 70. Bd1+
{[%clk 0:00:52.4]} 70... Ke3 {[%clk 0:01:31.2]} 71. Kg1 {[%clk 0:00:50.4]} 71...
Bf3 {[%clk 0:01:30.5]} 72. Bc2 {[%clk 0:00:49]} 72... e4 {[%clk 0:01:29]} 73.
Kf1 {[%clk 0:00:48.4]} 73... Kd2 {[%clk 0:01:28.3]} 74. Ba4 {[%clk 0:00:44]}
74... e3 {[%clk 0:01:27.5]} 0-1

[Event "Live Chess"]
[Site "Chess.com"]
[Date "2023.05.21"]
[Round "-"]
[White "SupremeTactician"]
[Black "Tilbs_12"]
[Result "1-0"]
[WhiteElo "2261"]
[BlackElo "1572"]
[TimeControl "300"]
[EndTime "2:36:34 PDT"]
[Termination "SupremeTactician won by resignation"]

1. e4 {[%clk 0:04:58.9]} 1... c6 {[%clk 0:04:58.9]} 2. d4 {[%clk 0:04:57.5]}
2... d5 {[%clk 0:04:58.3]} 3. Nc3 {[%clk 0:04:56.7]} 3... dxe4 {[%clk
0:04:57.2]} 4. Nxe4 {[%clk 0:04:56.6]} 4... Nf6 {[%clk 0:04:56]} 5. Nxf6+ {[%clk
0:04:54.7]} 5... exf6 {[%clk 0:04:53.6]} 6. c3 {[%clk 0:04:54.6]} 6... Bd6
{[%clk 0:04:52.4]} 7. Bd3 {[%clk 0:04:54.5]} 7... O-O {[%clk 0:04:51.2]} 8. Qc2
{[%clk 0:04:52.7]} 8... g6 {[%clk 0:04:49.2]} 9. Ne2 {[%clk 0:04:51.1]} 9... Re8
{[%clk 0:04:48.4]} 10. O-O {[%clk 0:04:50.3]} 10... Bf8 {[%clk 0:04:47.8]} 11.
Ng3 {[%clk 0:04:48.2]} 11... Nd7 {[%clk 0:04:46.2]} 12. Bd2 {[%clk 0:04:47.6]}
12... Nb6 {[%clk 0:04:44.7]} 13. Rae1 {[%clk 0:04:36.9]} 13... Bg7 {[%clk
0:04:42.9]} 14. Rxe8+ {[%clk 0:04:34.4]} 14... Qxe8 {[%clk 0:04:41.8]} 15. Re1
{[%clk 0:04:34.3]} 15... Qd8 {[%clk 0:04:40]} 16. b3 {[%clk 0:04:32.9]} 16...
Bd7 {[%clk 0:04:28.8]} 17. c4 {[%clk 0:04:30.7]} 17... Qc7 {[%clk 0:04:25.6]}
18. Ba5 {[%clk 0:04:27.4]} 18... Re8 {[%clk 0:04:21]} 19. Rxe8+ {[%clk
0:04:26.1]} 19... Bxe8 {[%clk 0:04:19.8]} 20. c5 {[%clk 0:04:26]} 20... Qd7
{[%clk 0:04:14.8]} 21. cxb6 {[%clk 0:04:17.2]} 21... axb6 {[%clk 0:04:13.5]} 22.
Bxb6 {[%clk 0:04:16.2]} 1-0